fUST/lending_fUST_20240226
["ID","MTS","AMOUNT","RATE_DAILY","PERIOD"]
[315163776,1708897840906,-500.0,0.00019178,2]
[315163778,1708897840916,-500.0,0.00019178,2]
[315163780,1708897840926,-187.20221519,0.00019178,2]
[315163782,1708897840935,-500.0,0.00019178,2]
[315163784,1708897840944,-500.0,0.00019178,2]
[315163786,1708897840953,-500.0,0.00019178,2]
[315163788,1708897840962,-500.0,0.00019178,2]
[315163790,1708897840971,-500.0,0.00019178,2]
[315163792,1708897840980,-500.0,0.00019178,2]
[315163794,1708897840990,-748.25,0.00019178,2]
[315163796,1708897840998,-615.06,0.00019178,2]
[315163798,1708897841008,-500.0,0.00019178,2]
[315163799,1708897841017,-500.0,0.00019178,2]
[315163800,1708897841025,-500.0,0.00019178,2]
[315163801,1708897841034,-500.0,0.00019178,2]
[315163802,1708897841043,-242.68643085,0.00019178,2]
[315163803,1708897841052,-500.0,0.00019178,2]
[315163804,1708897841061,-500.0,0.00019178,2]
[315163806,1708897841070,-500.0,0.00019178,2]
[315163808,1708897841079,-283.11226416,0.00019178,2]
[315163810,1708897841088,-500.0,0.00019178,2]
[315163812,1708897841099,-451.64073041,0.00019178,2]
[315163814,1708897841108,-500.0,0.00019178,2]
[315163816,1708897841117,-500.0,0.00019178,2]
[315163818,1708897841126,-500.0,0.00019178,2]
[315163820,1708897841135,-500.0,0.00019178,2]
[315163822,1708897841145,-500.0,0.00019178,2]
[315163824,1708897841154,-500.0,0.00019178,2]
[315163826,1708897841163,-500.0,0.00019178,2]
[315163828,1708897841172,-500.0,0.00019178,2]
[315163830,1708897841182,-500.0,0.00019178,2]
[315163832,1708897841191,-500.0,0.00019178,2]
[315163834,1708897841201,-500.0,0.00019178,2]
[315163836,1708897841210,-500.0,0.00019178,2]
[315163838,1708897841219,-500.0,0.00019178,2]
[315163840,1708897841227,-500.0,0.00019178,2]
[315163842,1708897841237,-553.33,0.00019178,2]
[315163844,1708897841247,-500.0,0.00019178,2]
[315163846,1708897841255,-500.0,0.00019178,2]
[315163848,1708897841264,-500.0,0.00019178,2]
[315163850,1708897841274,-500.0,0.00019178,2]
[315163852,1708897841283,-691.02,0.00019178,2]
[315163854,1708897841292,-396.36419202,0.00019178,2]
[315163856,1708897841301,-500.0,0.00019178,2]
[315163858,1708897841310,-500.0,0.00019178,2]
[315163860,1708897841319,-500.0,0.00019178,2]
[315163862,1708897841328,-500.0,0.00019178,2]
[315163864,1708897841337,-1685.79,0.00019178,2]
[315163866,1708897841346,-500.0,0.00019178,2]
[315163868,1708897841355,-500.0,0.00019178,2]
[315163870,1708897841364,-1575.7,0.00019178,2]
[315163872,1708897841373,-500.28098857,0.00019178,2]
[315163874,1708897841382,-368.47185558,0.00019178,2]
[315163876,1708897841391,-500.0,0.00019178,2]
[315163878,1708897841399,-501.21146868,0.00019178,2]
[315163880,1708897841409,-243.58118859,0.00019178,2]
[315163882,1708897841419,-506.70986665,0.00019178,2]
[315163884,1708897841428,-500.0,0.00019178,2]
[315163886,1708897841437,-500.0,0.00019178,2]
[315163888,1708897841447,-500.0,0.00019178,2]
[315163890,1708897841457,-177.06876316,0.00019178,2]
[315163892,1708897841466,-500.0,0.00019178,2]
[315163894,1708897841476,-500.0,0.00019178,2]
[315163896,1708897841486,-500.0,0.00019178,2]
[315163898,1708897841495,-500.0,0.00019178,2]
[315163900,1708897841507,-500.0,0.00019178,2]
[315163903,1708897841518,-500.0,0.00019178,2]
[315163905,1708897841528,-500.0,0.00019178,2]
[315163907,1708897841538,-500.0,0.00019178,2]
[315163909,1708897841549,-2137.92,0.00019178,2]
[315163911,1708897841559,-500.0,0.00019178,2]
[315163913,1708897841570,-2343.06,0.00019178,2]
[315163915,1708897841580,-500.0,0.00019178,2]
[315163917,1708897841591,-2292.58,0.00019178,2]
[315163918,1708897841603,-500.0,0.00019178,2]
[315163920,1708897841613,-1702.35,0.00019178,2]
[315163923,1708897841624,-500.0,0.00019178,2]
[315163924,1708897841639,-500.0,0.00019178,2]
[315163926,1708897841649,-500.0,0.00019178,2]
[315163928,1708897841659,-500.0,0.00019178,2]
[315163930,1708897841676,-500.0,0.00019178,2]
[315163932,1708897841686,-542.65859334,0.00019178,2]
[315163934,1708897841697,-500.0,0.00019178,2]
[315163937,1708897841708,-583.56,0.00019178,2]
[315163939,1708897841720,-500.0,0.00019178,2]
[315163941,1708897841729,-224.21370726,0.00019178,2]
[315163943,1708897841739,-500.0,0.00019178,2]
[315163945,1708897841749,-500.0,0.00019178,2]
[315163947,1708897841759,-500.0,0.00019178,2]
[315163949,1708897841768,-500.0,0.00019178,2]
[315163951,1708897841778,-500.0,0.00019178,2]
[315163953,1708897841788,-319.09963093,0.00019178,2]
[315163955,1708897841798,-500.0,0.00019178,2]
[315163957,1708897841807,-500.0,0.00019178,2]
[315163959,1708897841817,-500.0,0.00019178,2]
[315163961,1708897841827,-500.0,0.00019178,2]
[315163963,1708897841836,-500.0,0.00019178,2]
[315163965,1708897841846,-500.0,0.00019178,2]
[315163966,1708897841857,-1000.0,0.00019178,2]
[315163968,1708897841867,-500.0,0.00019178,2]
[315163970,1708897841878,-500.0,0.00019178,2]
[315163972,1708897841888,-18813.85,0.00019178,2]
[315163974,1708897841898,-500.0,0.00019178,2]
[315163976,1708897841909,-500.0,0.00019178,2]
[315163978,1708897841925,-9673.14,0.00019178,2]
[315163980,1708897841936,-500.0,0.00019178,2]
[315163982,1708897841947,-500.0,0.00019178,2]
[315163984,1708897841958,-500.0,0.00019178,2]
[315163986,1708897841969,-500.0,0.00019178,2]
[315163988,1708897841980,-500.0,0.00019178,2]
[315163990,1708897841990,-500.0,0.00019178,2]
[315163992,1708897842001,-500.0,0.00019178,2]
[315163994,1708897842012,-506.34387473,0.00019178,2]
[315163996,1708897842023,-500.0,0.00019178,2]
[315163998,1708897842033,-3468.02,0.00019178,2]
[315164000,1708897842044,-268.39371739,0.00019178,2]
[315164002,1708897842054,-500.0,0.00019178,2]
[315164004,1708897842064,-500.0,0.00019178,2]
[315164006,1708897842075,-500.0,0.00019178,2]
[315164008,1708897842085,-500.0,0.00019178,2]
[315164009,1708897842096,-500.0,0.00019178,2]
[315164011,1708897842106,-500.0,0.00019178,2]
[315164013,1708897842117,-500.9168553,0.00019178,2]
[315164015,1708897842128,-500.0,0.00019178,2]
[315164017,1708897842138,-500.0,0.00019178,2]
[315164019,1708897842148,-500.0,0.00019178,2]
[315164021,1708897842158,-1827.97,0.00019178,2]
[315164023,1708897842171,-500.0,0.00019178,2]
[315164025,1708897842181,-500.0,0.00019178,2]
[315164027,1708897842191,-548.4839743,0.00019178,2]
[315164029,1708897842200,-500.0,0.00019178,2]
[315164032,1708897842210,-500.0,0.00019178,2]
[315164033,1708897842219,-500.0,0.00019178,2]
[315164036,1708897842229,-500.0,0.00019178,2]
[315164038,1708897842239,-500.0,0.00019178,2]
[315164040,1708897842250,-500.0,0.00019178,2]
[315164042,1708897842259,-1784.0,0.00019178,2]
[315164044,1708897842268,-200.0,0.00019178,2]
[315164046,1708897842278,-1468.71,0.00019178,2]
[315164047,1708897842290,-500.0,0.00019178,2]
[315164049,1708897842299,-234.52147682,0.00019178,2]
[315164051,1708897842309,-500.0,0.00019178,2]
[315164053,1708897842318,-500.0,0.00019178,2]
[315164055,1708897842328,-500.0,0.00019178,2]
[315164057,1708897842337,-1156.53,0.00019178,2]
[315164059,1708897842346,-500.0,0.00019178,2]
[315164061,1708897842356,-625.0,0.00019178,2]
[315164063,1708897842366,-500.0,0.00019178,2]
[315164065,1708897842375,-500.0,0.00019178,2]
[315164067,1708897842384,-500.0,0.00019178,2]
[315164070,1708897842394,-9933.05,0.00019178,2]
[315164072,1708897842404,-2146.55,0.00019178,2]
[315164074,1708897842416,-18030.82,0.00019178,2]
[315164075,1708897842427,-500.0,0.00019178,2]
[315164078,1708897842437,-500.0,0.00019178,2]
[315164080,1708897842447,-500.0,0.00019178,2]
[315164082,1708897842457,-500.0,0.00019178,2]
[315164084,1708897842466,-500.0,0.00019178,2]
[315164086,1708897842475,-500.0,0.00019178,2]
[315164088,1708897842484,-500.0,0.00019178,2]
[315164090,1708897842494,-500.0,0.00019178,2]
[315164091,1708897842503,-500.0,0.00019178,2]
[315164094,1708897842514,-2493.34,0.00019178,2]
[315164096,1708897842523,-500.0,0.00019178,2]
[315164097,1708897842532,-500.0,0.00019178,2]
[315164100,1708897842542,-500.0,0.00019178,2]
[315164102,1708897842553,-500.0,0.00019178,2]
[315164104,1708897842565,-500.0,0.00019178,2]
[315164105,1708897842574,-500.0,0.00019178,2]
[315164108,1708897842583,-1001.4,0.00019178,2]
[315164109,1708897842593,-500.0,0.00019178,2]
[315164112,1708897842602,-500.0,0.00019178,2]
[315164114,1708897842611,-500.0,0.00019178,2]
[315164116,1708897842621,-500.0,0.00019178,2]
[315164118,1708897842631,-500.0,0.00019178,2]
[315164119,1708897842641,-500.0,0.00019178,2]
[315164122,1708897842652,-500.0,0.00019178,2]
[315164124,1708897842664,-3887.7,0.00019178,2]
[315164125,1708897842674,-500.0,0.00019178,2]
[315164127,1708897842683,-2565.63,0.00019178,2]
[315164129,1708897842692,-500.0,0.00019178,2]
[315164131,1708897842700,-1323.43,0.00019178,2]
[315164133,1708897842709,-500.0,0.00019178,2]
[315164135,1708897842719,-607.96,0.00019178,2]
[315164137,1708897842728,-607.96,0.00019178,2]
[315164139,1708897842737,-607.96,0.00019178,2]
[315164141,1708897842746,-400.0,0.00019178,2]
[315164143,1708897842756,-168.748849,0.00019178,2]
[315164145,1708897842765,-163.044618,0.00019178,2]
[315164147,1708897842775,-166.666666,0.00019178,2]
[315164149,1708897842784,-164.352299,0.00019178,2]
[315164151,1708897842794,-500.0,0.00019187,2]
[315164153,1708897842803,-174.34714351,0.00019215,2]
[315164155,1708897842813,-174.34714351,0.00019284,2]
[315164166,1708897842911,-174.34714351,0.00019352,2]
[315164169,1708897842924,-2961.64612268,0.00019352,2]
[315164172,1708897842934,-174.0,0.000194,2]
[315164175,1708897842944,-2961.64612266,0.00019413,2]
[315164177,1708897842953,-607.96,0.0001945,2]
[315164179,1708897842963,-607.96,0.0001945,2]
[315164181,1708897842972,-500.0,0.00019451,2]
[315164184,1708897842982,-500.0,0.00019451,2]
[315164187,1708897842991,-500.0,0.00019451,2]
[315164189,1708897843001,-319.09963093,0.00019451,2]
[315164191,1708897843010,-500.0,0.00019451,2]
[315164193,1708897843019,-555.85419396,0.00019451,2]
[315164195,1708897843029,-607.96,0.00019451,2]
[315164197,1708897843039,-501.35761309,0.00019452,2]
[315164199,1708897843049,-500.0,0.00019452,2]
[315164201,1708897843059,-500.0,0.00019452,2]
[315164203,1708897843068,-500.0,0.00019452,2]
[315164205,1708897843078,-500.0,0.00019452,2]
[315164207,1708897843087,-500.0,0.00019452,2]
[315164209,1708897843097,-649.34628108,0.00019452,2]
[315164211,1708897843106,-151.0,0.00019452,2]
[315164213,1708897843115,-500.0,0.00019452,2]
[315164215,1708897843125,-1139.59,0.00019452,2]
[315164217,1708897843134,-539.49,0.00019452,2]
[315164219,1708897843143,-500.0,0.00019452,2]
[315164221,1708897843154,-500.0,0.00019452,2]
[315164223,1708897843163,-500.0,0.00019452,2]
[315164226,1708897843173,-500.0,0.00019452,2]
[315164228,1708897843183,-634.56249942,0.00019452,2]
[315164230,1708897843192,-1000.0,0.00019452,2]
[315164232,1708897843201,-521.6383826,0.00019452,2]
[315164234,1708897843210,-614.95785219,0.00019452,2]
[315164236,1708897843220,-500.0,0.00019452,2]
[315164238,1708897843229,-500.0,0.00019452,2]
[315164240,1708897843239,-500.0,0.00019452,2]
[315164242,1708897843249,-500.0,0.00019452,2]
[315164244,1708897843258,-500.0,0.00019452,2]
[315164246,1708897843267,-500.50799428,0.00019452,2]
[315164248,1708897843276,-500.0,0.00019452,2]
[315164250,1708897843286,-500.0,0.00019452,2]
[315164252,1708897843295,-500.0,0.00019452,2]
[315164254,1708897843305,-500.0,0.00019452,2]
[315164256,1708897843314,-500.0,0.00019452,2]
[315164258,1708897843323,-500.44554136,0.00019452,2]
[315164260,1708897843333,-604.0350439,0.00019452,2]
[315164262,1708897843342,-230.13455929,0.00019452,2]
[315164264,1708897843352,-500.0,0.00019452,2]
[315164266,1708897843361,-500.0,0.00019452,2]
[315164268,1708897843370,-500.0,0.00019452,2]
[315164270,1708897843379,-579.29146287,0.00019452,2]
[315164272,1708897843389,-500.0,0.00019452,2]
[315164274,1708897843399,-417.98180468,0.00019452,2]
[315164276,1708897843408,-500.0,0.00019452,2]
[315164278,1708897843420,-500.0,0.00019452,2]
[315164280,1708897843429,-695.86,0.00019452,2]
[315164282,1708897843438,-500.0,0.00019452,2]
[315164284,1708897843447,-500.0,0.00019452,2]
[315164286,1708897843457,-500.0,0.00019452,2]
[315164288,1708897843466,-500.0,0.00019452,2]
[315164290,1708897843476,-500.0,0.00019452,2]
[315164292,1708897843485,-500.0,0.00019452,2]
[315164294,1708897843494,-501.58719157,0.00019452,2]
[315164296,1708897843503,-500.0,0.00019452,2]
[315164298,1708897843512,-589.92596995,0.00019452,2]
[315164300,1708897843523,-500.0,0.00019452,2]
[315164302,1708897843532,-500.0,0.00019452,2]
[315164304,1708897843542,-500.88715214,0.00019452,2]
[315164306,1708897843551,-501.34536257,0.00019452,2]
[315164308,1708897843560,-602.69,0.00019452,2]
[315164310,1708897843569,-500.0,0.00019452,2]
[315164312,1708897843578,-500.0,0.00019452,2]
[315164314,1708897843588,-500.0,0.00019452,2]
[315164316,1708897843597,-500.0,0.00019452,2]
[315164318,1708897843606,-2722.22,0.00019452,2]
[315164320,1708897843615,-301.65407508,0.00019452,2]
[315164322,1708897843625,-500.0,0.00019452,2]
[315164324,1708897843635,-500.0,0.00019452,2]
[315164326,1708897843645,-500.0,0.00019452,2]
[315164328,1708897843657,-1231.69,0.00019452,2]
[315164330,1708897843668,-500.0,0.00019452,2]
[315164332,1708897843679,-500.0,0.00019452,2]
[315164334,1708897843688,-500.0,0.00019452,2]
[315164336,1708897843699,-500.0,0.00019452,2]
[315164339,1708897843710,-500.0,0.00019452,2]
[315164340,1708897843721,-974.67,0.00019452,2]
[315164342,1708897843732,-417.12961598,0.00019452,2]
[315164344,1708897843741,-500.0,0.00019452,2]
[315164346,1708897843751,-500.0,0.00019452,2]
[315164348,1708897843761,-500.50541851,0.00019452,2]
[315164350,1708897843770,-500.0,0.00019452,2]
[315164352,1708897843779,-500.0,0.00019452,2]
[315164354,1708897843789,-500.0,0.00019452,2]
[315164356,1708897843799,-500.0,0.00019452,2]
[315164358,1708897843808,-500.0,0.00019452,2]
[315164360,1708897843818,-500.0,0.00019452,2]
[315164362,1708897843827,-500.0,0.00019452,2]
[315164364,1708897843836,-500.0,0.00019452,2]
[315164366,1708897843847,-500.0,0.00019452,2]
[315164368,1708897843857,-500.0,0.00019452,2]
[315164370,1708897843866,-614.33144161,0.00019452,2]
[315164372,1708897843876,-500.0,0.00019452,2]
[315164374,1708897843885,-500.0,0.00019452,2]
[315164376,1708897843895,-500.0,0.00019452,2]
[315164378,1708897843904,-500.0,0.00019452,2]
[315164380,1708897843914,-500.0,0.00019452,2]
[315164382,1708897843924,-500.0,0.00019452,2]
[315164384,1708897843934,-500.0,0.00019452,2]
[315164386,1708897843943,-500.0,0.00019452,2]
[315164388,1708897843952,-265.9437371,0.00019452,2]
[315164390,1708897843962,-500.0,0.00019452,2]
[315164392,1708897843971,-414.64097226,0.00019452,2]
[315164394,1708897843982,-500.0,0.00019452,2]
[315164396,1708897843991,-500.0,0.00019452,2]
[315164398,1708897844000,-500.0,0.00019452,2]
[315164400,1708897844009,-500.0,0.00019452,2]
[315164402,1708897844019,-500.0,0.00019452,2]
[315164403,1708897844028,-500.0,0.00019452,2]
[315164405,1708897844038,-500.0,0.00019452,2]
[315164407,1708897844047,-500.0,0.00019452,2]
[315164409,1708897844057,-1852.92,0.00019452,2]
[315164411,1708897844068,-500.0,0.00019452,2]
[315164413,1708897844077,-500.0,0.00019452,2]
[315164415,1708897844087,-500.0,0.00019452,2]
[315164417,1708897844097,-500.0,0.00019452,2]
[315164419,1708897844107,-500.0,0.00019452,2]
[315164421,1708897844116,-502.09679312,0.00019452,2]
[315164423,1708897844126,-631.02090704,0.00019452,2]
[315164425,1708897844135,-500.0,0.00019452,2]
[315164427,1708897844144,-500.0,0.00019452,2]
[315164429,1708897844153,-500.0,0.00019452,2]
[315164431,1708897844163,-500.0,0.00019452,2]
[315164432,1708897844175,-1487.16,0.00019452,2]
[315164434,1708897844185,-500.0,0.00019452,2]
[315164436,1708897844194,-500.0,0.00019452,2]
[315164438,1708897844204,-527.48064303,0.00019452,2]
[315164440,1708897844214,-500.0,0.00019452,2]
[315164442,1708897844223,-502.54439093,0.00019452,2]
[315164444,1708897844233,-500.0,0.00019452,2]
[315164446,1708897844242,-500.0,0.00019452,2]
[315164448,1708897844251,-483.33143822,0.00019452,2]
[315164450,1708897844261,-500.0,0.00019452,2]
[315164452,1708897844271,-500.0,0.00019452,2]
[315164454,1708897844280,-500.0,0.00019452,2]
[315164456,1708897844290,-500.0,0.00019452,2]
[315164458,1708897844299,-500.0,0.00019452,2]
[315164460,1708897844308,-500.52544546,0.00019452,2]
[315164462,1708897844317,-500.0,0.00019452,2]
[315164464,1708897844327,-500.0,0.00019452,2]
[315164466,1708897844336,-500.0,0.00019452,2]
[315164468,1708897844346,-1182.12,0.00019452,2]
[315164470,1708897844356,-500.0,0.00019452,2]
[315164472,1708897844365,-500.0,0.00019452,2]
[315164474,1708897844374,-500.0,0.00019452,2]
[315164476,1708897844384,-500.0,0.00019452,2]
[315164478,1708897844393,-500.0,0.00019452,2]
[315164480,1708897844402,-500.0,0.00019452,2]
[315164481,1708897844411,-500.0,0.00019452,2]
[315164483,1708897844423,-500.0,0.00019452,2]
[315164485,1708897844432,-500.0,0.00019452,2]
[315164487,1708897844441,-312.19112471,0.00019452,2]
[315164489,1708897844450,-748.25,0.00019452,2]
[315164491,1708897844460,-615.06,0.00019452,2]
[315164493,1708897844469,-500.0,0.00019452,2]
[315164495,1708897844477,-500.0,0.00019452,2]
[315164497,1708897844487,-500.0,0.00019452,2]
[315164499,1708897844496,-500.0,0.00019452,2]
[315164501,1708897844505,-500.0,0.00019452,2]
[315164503,1708897844514,-500.0,0.00019452,2]
[315164505,1708897844523,-500.0,0.00019452,2]
[315164507,1708897844532,-500.0,0.00019452,2]
[315164509,1708897844541,-500.0,0.00019452,2]
[315164511,1708897844550,-500.0,0.00019452,2]
[315164513,1708897844560,-500.0,0.00019452,2]
[315164515,1708897844569,-500.0,0.00019452,2]
[315164517,1708897844578,-500.0,0.00019452,2]
[315164519,1708897844587,-500.0,0.00019452,2]
[315164521,1708897844596,-500.0,0.00019452,2]
[315164523,1708897844605,-544.51786006,0.00019452,2]
[315164525,1708897844614,-500.39052972,0.00019452,2]
[315164527,1708897844625,-500.0,0.00019452,2]
[315164529,1708897844637,-500.0,0.00019452,2]
[315164531,1708897844647,-500.0,0.00019452,2]
[315164533,1708897844656,-500.0,0.00019452,2]
[315164535,1708897844666,-500.0,0.00019452,2]
[315164537,1708897844676,-553.33,0.00019452,2]
[315164539,1708897844686,-500.0,0.00019452,2]
[315164541,1708897844695,-500.0,0.00019452,2]
[315164543,1708897844704,-501.22711499,0.00019452,2]
[315164544,1708897844715,-500.0,0.00019452,2]
[315164546,1708897844724,-691.02,0.00019452,2]
[315164548,1708897844734,-500.0,0.00019452,2]
[315164550,1708897844743,-500.0,0.00019452,2]
[315164552,1708897844752,-500.0,0.00019452,2]
[315164554,1708897844761,-500.0,0.00019452,2]
[315164556,1708897844770,-1685.79,0.00019452,2]
[315164558,1708897844779,-500.0,0.00019452,2]
[315164560,1708897844789,-389.05948452,0.00019452,2]
[315164562,1708897844798,-1575.7,0.00019452,2]
[315164564,1708897844807,-500.0,0.00019452,2]
[315164566,1708897844816,-500.0,0.00019452,2]
[315164568,1708897844825,-500.0,0.00019452,2]
[315164570,1708897844834,-631.88316955,0.00019452,2]
[315164572,1708897844844,-500.0,0.00019452,2]
[315164583,1708897844935,-500.0,0.00019452,2]
[315164585,1708897844944,-500.0,0.00019452,2]
[315164587,1708897844953,-500.0,0.00019452,2]
[315164589,1708897844962,-500.0,0.00019452,2]
[315164591,1708897844971,-500.0,0.00019452,2]
[315164593,1708897844980,-500.0,0.00019452,2]
[315164595,1708897844988,-640.14797302,0.00019452,2]
[315164597,1708897844998,-2137.92,0.00019452,2]
[315164599,1708897845007,-500.0,0.00019452,2]
[315164601,1708897845016,-2343.06,0.00019452,2]
[315164602,1708897845025,-500.0,0.00019452,2]
[315164604,1708897845034,-2292.58,0.00019452,2]
[315164606,1708897845043,-501.21839643,0.00019452,2]
[315164608,1708897845052,-1702.35,0.00019452,2]
[315164610,1708897845062,-500.0,0.00019452,2]
[315164612,1708897845071,-500.0,0.00019452,2]
[315164614,1708897845080,-500.0,0.00019452,2]
[315164616,1708897845089,-500.0,0.00019452,2]
[315164618,1708897845098,-500.0,0.00019452,2]
[315164620,1708897845107,-218.11779643,0.00019452,2]
[315164622,1708897845116,-583.56,0.00019452,2]
[315164624,1708897845125,-500.0,0.00019452,2]
[315164626,1708897845134,-500.0,0.00019452,2]
[315164628,1708897845144,-500.0,0.00019452,2]
[315164630,1708897845153,-500.51240709,0.00019452,2]
[315164632,1708897845165,-500.0,0.00019452,2]
[315164634,1708897845175,-500.0,0.00019452,2]
[315164636,1708897845184,-500.0,0.00019452,2]
[315164638,1708897845194,-500.0,0.00019452,2]
[315164640,1708897845203,-1000.0,0.00019452,2]
[315164642,1708897845212,-500.0,0.00019452,2]
[315164644,1708897845221,-500.0,0.00019452,2]
[315164646,1708897845230,-18813.85,0.00019452,2]
[315164648,1708897845239,-500.0,0.00019452,2]
[315164650,1708897845248,-500.0,0.00019452,2]
[315164652,1708897845257,-9673.14,0.00019452,2]
[315164654,1708897845266,-500.0,0.00019452,2]
[315164655,1708897845277,-541.94821274,0.00019452,2]
[315164657,1708897845286,-515.7261257,0.00019452,2]
[315164659,1708897845296,-500.0,0.00019452,2]
[315164661,1708897845306,-500.0,0.00019452,2]
[315164664,1708897845315,-500.0,0.00019452,2]
[315164665,1708897845325,-500.0,0.00019452,2]
[315164667,1708897845334,-500.0,0.00019452,2]
[315164669,1708897845343,-3468.02,0.00019452,2]
[315164671,1708897845352,-500.42437072,0.00019452,2]
[315164673,1708897845361,-500.0,0.00019452,2]
[315164675,1708897845371,-485.95883318,0.00019452,2]
[315164677,1708897845380,-500.0,0.00019452,2]
[315164679,1708897845389,-500.0,0.00019452,2]
[315164681,1708897845397,-500.0,0.00019452,2]
[315164683,1708897845406,-482.96851465,0.00019452,2]
[315164685,1708897845417,-500.0,0.00019452,2]
[315164687,1708897845426,-1827.97,0.00019452,2]
[315164689,1708897845435,-500.0,0.00019452,2]
[315164691,1708897845444,-500.0,0.00019452,2]
[315164692,1708897845453,-500.0,0.00019452,2]
[315164694,1708897845462,-630.4741948,0.00019452,2]
[315164697,1708897845472,-500.0,0.00019452,2]
[315164698,1708897845481,-500.0,0.00019452,2]
[315164700,1708897845490,-500.0,0.00019452,2]
[315164702,1708897845499,-500.0,0.00019452,2]
[315164704,1708897845508,-1784.0,0.00019452,2]
[315164706,1708897845517,-1468.71,0.00019452,2]
[315164708,1708897845527,-500.0,0.00019452,2]
[315164710,1708897845536,-461.91857178,0.00019452,2]
[315164712,1708897845545,-500.0,0.00019452,2]
[315164714,1708897845554,-1156.53,0.00019452,2]
[315164716,1708897845563,-500.0,0.00019452,2]
[315164718,1708897845572,-625.0,0.00019452,2]
[315164720,1708897845583,-500.0,0.00019452,2]
[315164722,1708897845592,-504.30900144,0.00019452,2]
[315164724,1708897845601,-9933.05,0.00019452,2]
[315164725,1708897845611,-2146.55,0.00019452,2]
[315164727,1708897845621,-18030.82,0.00019452,2]
[315164729,1708897845630,-500.0,0.00019452,2]
[315164731,1708897845639,-500.0,0.00019452,2]
[315164733,1708897845650,-500.0,0.00019452,2]
[315164735,1708897845660,-500.0,0.00019452,2]
[315164737,1708897845672,-500.0,0.00019452,2]
[315164739,1708897845681,-500.0,0.00019452,2]
[315164741,1708897845691,-500.0,0.00019452,2]
[315164743,1708897845700,-500.0,0.00019452,2]
[315164744,1708897845709,-500.0,0.00019452,2]
[315164745,1708897845718,-2493.34,0.00019452,2]
[315164746,1708897845728,-500.0,0.00019452,2]
[315164747,1708897845739,-500.0,0.00019452,2]
[315164748,1708897845748,-500.0,0.00019452,2]
[315164749,1708897845758,-500.0,0.00019452,2]
[315164750,1708897845767,-500.0,0.00019452,2]
[315164751,1708897845777,-1001.4,0.00019452,2]
[315164752,1708897845786,-500.6752788,0.00019452,2]
[315164753,1708897845797,-500.0,0.00019452,2]
[315164754,1708897845806,-500.0,0.00019452,2]
[315164755,1708897845815,-500.0,0.00019452,2]
[315164756,1708897845825,-500.0,0.00019452,2]
[315164757,1708897845834,-500.0,0.00019452,2]
[315164758,1708897845844,-3887.7,0.00019452,2]
[315164759,1708897845853,-500.0,0.00019452,2]
[315164760,1708897845863,-2565.63,0.00019452,2]
[315164761,1708897845872,-1323.43,0.00019452,2]
[315164762,1708897845881,-502.05058495,0.00019452,2]
[315164763,1708897845890,-4173.32151869,0.00019467,2]